Cogmind - Beta 14 @@@ ROGUE MODE // 2024.10.22 @ 22:14:35 Player: festa Result: Destroyed by G-47 Trooper with Particle Gun Performance ------------- Evolutions (1) 500 Regions Visited (2) 400 Robots Destroyed (11) 55 Value Destroyed (263) 263 Prototype IDs (0) 0 Alien Tech Used (0) 0 Bonus (0) 0 TOTAL SCORE: 1218 Bonus ------- None Cogmind --------- Core Integrity 0/400 Matter 140/450 Energy 100/100 System Corruption 0% Temperature Cool (9) Movement Core (300) Ox5 Location -9/Materials Parts ------- > --- POWER (1) -------- (None) > --- PROPULSION (3) --- (None) > --- UTILITY (3) ------ Small Storage Unit Large Matter Pod Field Recycling Unit > --- WEAPON (2) ------- (None) > --- INVENTORY (8) ---- Small Storage Unit Small Storage Unit Spread Laser Light Assault Rifle Light Cannon Peak State ------------ > --- POWER ------------ Light Ion Engine > --- PROPULSION ------- Improved Hover Unit Improved Hover Unit Improved Hover Unit > --- UTILITY ---------- Small Storage Unit Large Matter Pod Field Recycling Unit > --- WEAPON ----------- Spread Laser Light Cannon > --- INVENTORY -------- Light Ion Engine Improved Hover Unit Flight Unit Flight Unit Small Storage Unit Small Storage Unit Spread Laser Light Assault Rifle [Rating: 15] Favorites ----------- Power Light Ion Engine Engine Light Ion Engine Propulsion Wheel Wheel Wheel Hover Unit Improved Hover Unit Flight Unit Flight Unit Utility Small Storage Unit Device Field Recycling Unit Storage Small Storage Unit Weapon Light Cannon Energy Gun Medium Laser Ballistic Gun Light Assault Rifle Ballistic Cannon Light Cannon Build | -11 -10 -9 ------- Run | Yrd Mat Mat Slots Evolved 2 | . . 2 Power . | . . . Propulsion 1 | . . 1 Utility 1 | . . 1 Weapon . | . . . Parts Attached 28 | 6 12 10 Power 4 | 1 2 1 Engine 4 | 1 2 1 Core . | . . . Reactor . | . . . Propulsion 11 | 2 4 5 Treads . | . . . Leg . | . . . Wheel 2 | 2 . . Hover 5 | . 2 3 Flight 4 | . 2 2 Utility 6 | 1 2 3 Device 1 | . . 1 Storage 5 | 1 2 2 Processor . | . . . Hackware . | . . . Protection . | . . . Artifact . | . . . Weapon 7 | 2 4 1 Energy Gun 3 | 2 . 1 Energy Cannon . | . . . Ballistic Gun 2 | . 2 . Ballistic Cannon 2 | . 2 . Launcher . | . . . Special Weapon . | . . . Impact Weapon . | . . . Slashing Weapon . | . . . Piercing Weapon . | . . . Special Melee Weapon . | . . . Unidentified Prototypes . | . . . Parts Lost 9 | . . 9 Power 2 | . . 2 Propulsion 6 | . . 6 Utility . | . . . Weapon 1 | . . 1 Highest Loss Streak 9 | . . 9 To Critical Strikes . | . . . Average Slot Usage (%) 92 | . 97 82 Engine 12 | . 14 8 Wheel 11 | . 17 . Hover 11 | . 4 23 Flight 3 | . 5 1 Device 3 | . . 11 Storage 24 | . 25 22 Energy Gun 11 | . 16 1 Ballistic Gun 5 | . 5 6 Ballistic Cannon 6 | . 6 7 Peak Build Rating 15 | 6 10 15 Average Rating 8 | 4 7 11 On Entrance 5 | . 6 10 Naked Turns . | . . . Heaviest Build 25 | 13 18 25 Greatest Support 20 | 20 20 14 Greatest Overweight (x) 5 | . 3 5 Average Overweight (x) . | . . 1 Largest Inventory Capacity 8 | 8 8 8 Average Capacity 7 | 6 8 8 Most Carried 8 | 6 8 8 Average Carried 6 | 3 7 7 Final Capacity 8 | 8 8 8 Final Carried 8 | 6 8 5 Class Distribution -------------------- 86% | Mutant 13% | Scavenger-Mutant Dominant Class ---------------- Mutant | -10/Materials Mutant | -9/Materials Resources | -11 -10 -9 ----------- Run | Yrd Mat Mat Matter Collected 401 | 226 174 1 Remotely . | . . . Salvage Created 217 | . 139 78 Parts 19 | . 13 6 Haulers Intercepted . | . . . Recyclers Shooed . | . . . Parts Field Recycled . | . . . Retrieved Matter . | . . . Parts Self-Destructed . | . . . Prevented . | . . . Kills | -11 -10 -9 ------- Run | Yrd Mat Mat Combat Hostiles Destroyed 11 | . 8 3 Guns 7 | . 5 2 Cannons 4 | . 3 1 Classes Destroyed 2 | . 2 . Swarmer 6 | . 6 . Grunt 5 | . 2 3 Best Kill Streak 5 | . 5 3 Combat Bots Only 5 | . 5 3 Max Kills in Single Turn 1 | . 1 1 Gunslinging . | . . . Exploded . | . . . Melee . | . . . Uniques/NPCs Destroyed . | . . . Combat | -11 -10 -9 -------- Run | Yrd Mat Mat Hostile Shots Fired 132 | . 44 88 Missed 34 | . 8 26 Damage Taken 1354 | 2 352 1000 Core 500 | . 95 405 Absorbed by Shields . | . . . Core Remaining (%) 81 | 100 62 . Volleys Fired 34 | . 21 13 Largest 2 | . 2 2 Hottest 100 | . 90 100 Shots Fired 68 | . 42 26 Gun 46 | . 33 13 Cannon 22 | . 9 13 Launcher . | . . . Special . | . . . Kinetic 29 | . 12 17 Thermal 39 | . 30 9 Explosive . | . . . Electromagnetic . | . . . Robot Hit Streak 7 | . 4 7 Robot Miss Streak 5 | . 3 5 Penetration Max . | . . . Secondary Targets 1 | . 1 . Max Gunslinging Chain 1 | . 1 . Shots Hit Robots 38 | . 21 17 Core Hits 25 | . 9 16 Critical Kills . | . . . Critical Parts Destroyed . | . . . Critical Strikes 2 | . 2 . Burn 1 | . 1 . Blast 1 | . 1 . Melee Attacks . | . . . Impact . | . . . Slashing . | . . . Piercing . | . . . Sneak Attacks . | . . . Combat Hostiles . | . . . Follow-up Attacks . | . . . Damage Inflicted 667 | 4 305 358 Guns 391 | . 229 162 Cannons 180 | . 76 104 Explosions 87 | . . 87 Melee . | . . . Ramming 9 | 4 . 5 Kinetic 225 | . 91 134 Thermal 346 | . 214 132 Explosive 87 | . . 87 Electromagnetic . | . . . Impact . | . . . Slashing . | . . . Piercing . | . . . Highest Corruption . | . . . Average Corruption . | . . . Corruption Purged . | . . . Corruption Blocked . | . . . Overload Shots . | . . . Overflow Damage 48 | . . 48 Projectiles . | . . . Explosions 48 | . . 48 Melee . | . . . Knockbacks 3 | . 1 2 Impact . | . . . Kinetic 3 | . 1 2 Secondary . | . . . Self-Inflicted Damage 99 | 2 . 97 Shots 1 | . . 1 Rammed 2 | 1 . 1 Targets Rammed 2 | 1 . 1 Kicked . | . . . Crushed . | . . . Highest Temperature 427 | . 427 419 Average Temperature 199 | . 207 186 Received Heat Transfer 576 | . 138 438 Effects 12 | . 7 5 Shutdowns 3 | . 2 1 Energy Bleed 5 | . 2 3 Matter Decay 1 | . 1 . Short Circuit 1 | . . 1 Damage (major) 2 | . 2 . Siege Activations . | . . . Robots Corrupted . | . . . Combat Hostiles . | . . . Parts Fried . | . . . Impact Corruptions . | . . . Robots Melted . | . . . Combat Hostiles . | . . . Parts Melted 1 | . 1 . Heat Transferred 811 | . 656 155 Parts Sabotaged . | . . . Parts Stolen . | . . . Parts Stripped . | . . . Power Chain Reactions . | . . . Alert | -11 -10 -9 ------- Run | Yrd Mat Mat Peak Influence 238 | . 238 117 Initial 22 | . . 22 Average 62 | . 74 52 Maximum Alert Level 1 | . 1 . Low Security (%) 89 | 100 82 100 Level 1 10 | . 17 . Level 2 . | . . . Level 3 . | . . . Level 4 . | . . . Level 5 . | . . . High Security . | . . . Max Security . | . . . Squads Dispatched 2 | . 2 . Investigation . | . . . Extermination . | . . . Reinforcement 2 | . 2 . Assault . | . . . Garrison . | . . . Intercept . | . . . Searches Triggered . | . . . Construction Impeded . | . . . Haulers Reinforced . | . . . Active Scanning Responses . | . . . Cargo Convoy Interrupts . | . . . Stealth | -11 -10 -9 --------- Run | Yrd Mat Mat Distress Signals 1 | . . 1 Communications Jammed . | . . . Distress Signals . | . . . Times Spotted 23 | . 14 9 Peak Tracking Total 4 | . 4 4 Tactical Retreats 2 | . 2 . Traps | -11 -10 -9 ------- Run | Yrd Mat Mat Traps Triggered 2 | . . 2 Indirectly . | . . . Trap Hack Attempts . | . . . Triggered . | . . . Disarmed . | . . . Reprogrammed . | . . . Reused . | . . . Traps Extracted . | . . . Installed . | . . . Triggered . | . . . Machines | -11 -10 -9 ---------- Run | Yrd Mat Mat Machines Disabled 2 | . . 2 Max in Single Turn 2 | . . 2 Machines Repaired . | . . . Machines Dismantled . | . . . Machines Sabotaged . | . . . Overloaded Fab Kills . | . . . Hacking | -11 -10 -9 --------- Run | Yrd Mat Mat Machines Accessed 6 | . 5 1 Terminals 4 | . 4 . Fabricators . | . . . Repair Stations 1 | . 1 . Recycling Units . | . . . Scanalyzers 1 | . . 1 Garrison Access . | . . . Total Hacks 15 | . 10 5 Successful 9 | . 5 4 Failed 6 | . 5 1 Catastrophic . | . . . Database Lockouts . | . . . Manual . | . . . Terminals 9 | . 9 . Fabricators . | . . . Repair Stations 1 | . 1 . Recycling Units . | . . . Scanalyzers 5 | . . 5 Garrison Access . | . . . Terminal Hacks 4 | . 4 . Record 2 | . 2 . Zone Layout 2 | . 2 . Fabricator Hacks . | . . . Repair Station Hacks 1 | . 1 . Scan Component 1 | . 1 . Recycling Unit Hacks . | . . . Scanalyzer 4 | . . 4 Insert Component 2 | . . 2 Analyze 2 | . . 2 Garrison Access Hacks . | . . . Unauthorized Hacks . | . . . Terminals . | . . . Fabricators . | . . . Repair Stations . | . . . Recycling Units . | . . . Scanalyzers . | . . . Garrison Access . | . . . Data Cores Recovered . | . . . Used . | . . . Hacking Detections 4 | . 3 1 Full Trace Events . | . . . Feedback Events . | . . . Feedback Blocked . | . . . Robot Schematics Acquired . | . . . Robots Built . | . . . Authchips . | . . . Time . | . . . Total Robot Build Rating . | . . . Part Schematics Acquired 2 | . . 2 Parts Built . | . . . Authchips . | . . . Time . | . . . Total Part Build Rating . | . . . Parts Repaired . | . . . Time . | . . . Parts Recycled . | . . . Recycled Matter . | . . . Retrieved Matter . | . . . Retrieved Components . | . . . Parts Scanalyzed 2 | . . 2 Part Schematics Acquired 2 | . . 2 Parts Damaged . | . . . Bothacking | -11 -10 -9 ------------ Run | Yrd Mat Mat Used RIF Installer . | . . . Robots Hacked . | . . . Non-combat . | . . . Combat . | . . . Robot Hacks Applied . | . . . Relay Couplers Released . | . . . Fabnet Peak Effective % . | . . . Robots Rewired . | . . . Allies Hacked . | . . . Hacks Repelled . | . . . Allies | -11 -10 -9 -------- Run | Yrd Mat Mat Total Allies . | . . . Largest Group . | . . . Highest-Rated Group . | . . . Highest-Rated Ally . | . . . Total Orders . | . . . Ally Attacks . | . . . Total Damage . | . . . Kills . | . . . Allies Corrupted . | . . . Allies Melted . | . . . Intel | -11 -10 -9 ------- Run | Yrd Mat Mat Robot Analysis Total . | . . . Derelict Logs Recovered . | . . . Drone Launches . | . . . Drone Recoveries . | . . . Exploration | -11 -10 -9 ------------- Run | Yrd Mat Mat Turns Passed 741 | 56 457 228 Spaces Moved 432 | 52 273 107 Core 9 | 6 . 3 Treads . | . . . Legs . | . . . Wheels 222 | 46 176 . Hover 149 | . 53 96 Flight 52 | . 44 8 Fastest Speed 50 | 50 80 116 Average Speed 104 | 76 94 143 Slowest Speed 360 | 80 280 360 Overloaded Moves . | . . . Propulsion Burnouts . | . . . Robots Hopped . | . . . Cave-ins Triggered . | . . . Exploration Rate (%) 15 | 4 28 13 Regions Visited 2 Branch Regions . Pre-discovered Areas . | . . . Known Exits Taken . | . . . Unknown Exits Taken 2 | 1 1 . Scrap Searched . | . . . Spaces Dug . | . . . Terrain Destroyed 25 | . . 25 Melee . | . . . Projectile . | . . . AOE 25 | . . 25 Terrain Rammed . | . . . Walls Destroyed . | . . . Machines Disabled . | . . . Actions | -11 -10 -9 --------- Run | Yrd Mat Mat Total 659 | 64 438 157 Wait 122 | . 100 22 Move 430 | 51 272 107 Hop . | . . . Pick Up 22 | 6 14 2 Fast Attach 8 | 6 2 . Attach 10 | . 3 7 Detach 5 | . 3 2 Swap 10 | . 7 3 Drop 16 | . 16 . Fire 34 | . 21 13 Melee . | . . . Ram 2 | 1 . 1 Kick . | . . . Crush . | . . . Escape Stasis . | . . . Rewire . | . . . Trap . | . . . Miscellaneous . | . . . Route ------- -11/Scrapyard -10/Materials -9/Materials History --------- Turn | Location | Event 37 | -11/Scrapyard | Discovered new exit (range 16) 57 | -11/Scrapyard | Entered Materials 325 | -10/Materials | Build established: Mutant 386 | -10/Materials | Discovered new exit (range 7) 514 | -10/Materials | Entered another Materials area 514 | -9/Materials | Evolved 2 slots: Propulsion x1, Utility x1 704 | -9/Materials | Core integrity fell below 50% 736 | -9/Materials | Core integrity fell below 20% 742 | -9/Materials | Destroyed by G-47 Trooper with Particle Gun Last Messages --------------- 00683_ U-05 Engineer builds a Wall. 00686_ Lgt. Ion Engine destroyed. 00688_ The unstable cave ceiling collapses. 00691_ Critical hit (Burn: +37). 00696_ U-05 Engineer builds a Wall. 00708_ U-05 Engineer lays Concrete. 00716_ Imp. Hover Unit destroyed. 00732_ Triggered EMP Trap. 00732_ A bubble of electromagnetic force engulfs the area. 00732_ EMP Trap short circuited. 00732_ A bubble of electromagnetic force engulfs the area. 00734_ Flight Unit destroyed. 00735_ Triggered EMP Trap. 00735_ A bubble of electromagnetic force engulfs the area. 00735_ EMP Trap short circuited. 00735_ A bubble of electromagnetic force engulfs the area. Map ----- +----------------------------------------------------+ | ?????????????????????????????????????????????????? | | ?????????????????????????????????????????????????? | | ?????????????????????????????????????????????????? | | ?????????????????????????????????????????????????? | | ?????????????????????????????????????????????????? | | ?????????????????????????????????????????????????? | | ?????????????????????????????????????????????????? | | ??????????????????????????###########????????????? | | ??????????????????????????# #????????????? | | ??????????????????????????# #????????????? | | ??????????????????????????# #????????????? | | ??????????????????????????# """ """ #????????????? | | ??????????????????????????# """ """ #????????????? | | ??????????????????????????# """ """ #######??????? | | ??????????????????????????# ##!!!!##????## | | ????????????????????####### # #????# | | ??????????? ####### ###/#+##### #????# | | ??????????? #### ###### | | ???????????T + | | ??????????? ##### ######## | | ??????????????####### gY#### # # ##????# | | ????????????????????### #??# # #????## | | ??????????????????????# #??# ##????? | | ??????????????????????# #??# #????? | | ??????????????????????# #??# #[ ##????? | | ??????????????????????# g@#??# + % * #?????? | | ??????????????????????# #??# # == #?????? | | ??????????????????????# #??## ##= #?????? | | ??????????????????????# #???# ## " #?????? | | ??????????????????????# #???# ## " ##?????? | | ??????????????????????# #???# ###########??????? | | ??????????????????????# #???# #????????????????? | | ??????????????????????# #???# #????????????????? | | ?????????????????????? ???# #????????????????? | | ?????????????????????? ???# +????????????????? | | ?????????????????????? ! ???# #????????????????? | | ?????????????????????a ???? ?????????????????? | | ?????????????????????# k ???? ?????????????????? | | ?????????????????????###+##???? ?????????????????? | | ??????????????????????????????? ?????????????????? | | ??????????????????????????????? ?????????????????? | | ??????????????????????????????? ?????????????????? | | ??????????????????????????????? ?????????????????? | | ?????????????????????????????????????????????????? | | ?????????????????????????????????????????????????? | | ?????????????????????????????????????????????????? | | ?????????????????????????????????????????????????? | | ?????????????????????????????????????????????????? | | ?????????????????????????????????????????????????? | | ?????????????????????????????????????????????????? | +----------------------------------------------------+ Best States ------------- Heat Dissipation 28 Energy Generation 10 Energy Capacity 250 Matter Stores 271 Matter Capacity 450 Sight Range 16 Terrain Scan Density 10 Evasion (%) 44 Item Schematics ----------------- Sml. Storage Unit | -9/Materials | Scanalyzed Imp. Hover Unit | -9/Materials | Scanalyzed Robot Schematics ------------------ None Fabricated ------------ Nothing Alien Tech Used ----------------- None Achievements -------------- None Challenges ------------ None Game ------ Seed TractorAssembledWheel Manual? 0 Play Time 00:29:50 Cumulative 12.5 hours Start 2024.10.22 @ 21:40:46 End 2024.10.22 @ 22:14:35 Sessions 1 Manual Loads 0 Difficulty Rogue Special Mode None Game No. 22 Rogue 22 Adventurer 0 Explorer 0 Win Type - Total 0 Types 0/0/0/0/0/0/0/0/0 Lore% 3 Gallery% 15 Achievement% 8 Wizard Run 0 Options --------- Layout 1 ASCII 0 Keyboard 1 Movement Numpad Keybinds 0 Fullscreen 2 Font 24/Tamsyn Map View 50x35 Zoom Use 0% Tactical HUD 1 Map Filters NONE Filters NONE Steam 1 RUN: 438ddb38-a757-4824-bd86-b79177f80870